[Event "GER-ch Youth U10w 2019"]
[Site "Willingen"]
[Date "2019.06.14"]
[Round "9.5"]
[White "Oellrich, Emma"]
[Black "Heutling, Sarah"]
[Result "0-1"]
[ECO "C54"]
[WhiteElo "1484"]
[BlackElo "1147"]
[Annotator "NA"]
[PlyCount "120"]
[EventDate "2019.06.07"]
[EventType "swiss"]
[EventRounds "11"]
[EventCountry "GER"]
[SourceTitle "playchess.com"]
[Source "ChessBase"]
[SourceQuality "1"]
[TimeControl "40/4500+30:900+30"]

1. e4 {[%emt 0:00:00]} e5 {[%emt 0:00:00]} 2. Nf3 {[%emt 0:00:00]} Nc6 {[%emt 0:00:00]} 3. Bc4 {[%emt 0:00:00]} Bc5 {[%emt 0:00:00]} 4. c3 {[%emt 0:00:14]} Nf6 {[%emt 0:00:03]} 5. d4 {[%emt 0:00:24]} exd4 {[%emt 0:00:13]} 6. e5 {[%emt 0:00:28]} d5 {[%emt 0:00:15]} 7. Bb5 {[%emt 0:00:08]} Ne4 {[%emt 0:00:17]} 8. cxd4 {[%emt 0:00:23]} Bb6 {[%emt 0:00:13]} 9. Nc3 {[%emt 0:00:25]} O-O {[%emt 0:00:34]} 10. Be3 {[%emt 0:00:23]} Bg4 {[%emt 0:00:22]} 11. h3 {[%emt 0:00:14]} Bh5 {[%emt 0:00:19]} 12. Qc2 {[%emt 0:00:16]} Bg6 {[%emt 0:00:34]} 13. Qb3 {[%emt 0:00:23]} Nxc3 {[%emt 0:00:37]} 14. bxc3 {[%emt 0:01:40]} f6 {[%emt 0:05:33]} 15. Bxc6 {[%emt 0:02:01]} bxc6 {[%emt 0:00:15]} 16. O-O {[%emt 0:00:18]} fxe5 {[%emt 0:01:39]} 17. Nxe5 {[%emt 0:03:01]} Qd6 {[%emt 0:05:39]} 18. Qa4 {[%emt 0:06:41]} c5 {[%emt 0:02:37]} 19. Nxg6 {[%emt 0:00:14]} hxg6 {[%emt 0:01:22]} 20. Rac1 {[%emt 0:06:02]} c6 {[%emt 0:01:43]} 21. Qa3 {[%emt 0:01:40]} Bc7 {[%emt 0:00:49]} 22. g3 {[%emt 0:00:35]} Rf3 {[%emt 0:01:35]} 23. Bf4 {[%emt 0:02:44]} Rxf4 {[%emt 0:03:10]} 24. gxf4 {[%emt 0:00:25]} Qxf4 {[%emt 0:00:09]} 25. Rfe1 {[%emt 0:00:15]} Qh2+ {[%emt 0:01:00]} 26. Kf1 {[%emt 0:00:13]} Qxh3+ {[%emt 0:00:15]} 27. Ke2 {[%emt 0:00:14]} Re8+ {[%emt 0:00:50]} 28. Kd2 {[%emt 0:03:11]} Bf4+ {[%emt 0:00:30]} 29. Kc2 {[%emt 0:01:09]} Qf5+ {[%emt 0:00:16]} 30. Kb3 {[%emt 0:03:23]} Rb8+ {[%emt 0:00:43]} 31. Ka4 {[%emt 0:00:28]} Bxc1 {[%emt 0:00:46]} 32. Rxc1 {[%emt 0:02:03]} Qc8 {[%emt 0:00:19]} 33. Qxc5 {[%emt 0:04:38]} Qa6+ {[%emt 0:00:42]} 34. Qa5 {[%emt 0:01:33]} Qc4+ {[%emt 0:00:33]} 35. Ka3 {[%emt 0:06:07]} Rb6 {[%emt 0:01:15]} 36. Qxa7 {[%emt 0:02:39]} Ra6+ {[%emt 0:00:10]} 37. Qxa6 {[%emt 0:00:09]} Qxa6+ {[%emt 0:00:05]} 38. Kb2 {[%emt 0:00:17]} Qc4 {[%emt 0:01:17]} 39. Ra1 {[%emt 0:02:57]} c5 {[%emt 0:01:48]} 40. dxc5 {[%emt 0:00:46]} Qxc5 {[%emt 0:00:08]} 41. a4 {[%emt 0:17:01]} Qxf2+ {[%emt 0:15:16]} 42. Kb3 {[%emt 0:00:17]} Qb6+ {[%emt 0:00:34]} 43. Kc2 {[%emt 0:00:42]} d4 {[%emt 0:01:25]} 44. a5 {[%emt 0:02:03]} Qa6 {[%emt 0:02:51]} 45. cxd4 {[%emt 0:03:59]} Qc4+ {[%emt 0:00:11]} 46. Kb2 {[%emt 0:02:01]} Qxd4+ {[%emt 0:00:11]} 47. Kb1 {[%emt 0:00:22]} g5 {[%emt 0:00:27]} 48. a6 {[%emt 0:00:41]} Qa7 {[%emt 0:00:49]} 49. Kb2 {[%emt 0:00:48]} g4 {[%emt 0:00:20]} 50. Ra3 {[%emt 0:00:48]} g3 51. Rxg3 {[%emt 0:03:18]} Qxa6 {[%emt 0:00:27]} 52. Rc3 {[%emt 0:00:13]} Qf6 {[%emt 0:01:39]} 53. Kc2 {[%emt 0:00:26]} g5 {[%emt 0:01:33]} 54. Kd2 {[%emt 0:01:53]} g4 {[%emt 0:01:47]} 55. Re3 {[%emt 0:01:17]} Qf2+ {[%emt 0:01:08]} 56. Re2 {[%emt 0:01:10]} Qf4+ {[%emt 0:00:12]} 57. Ke1 {[%emt 0:17:38]} Qf3 {[%emt 0:01:16]} 58. Rf2 {[%emt 0:05:11]} Qh3 {[%emt 0:01:37]} 59. Ke2 {[%emt 0:00:00]} g3 {[%emt 0:00:00]} 60. Rf1 {[%emt 0:00:00]} Qh2+ {[%emt 0:00:00] normal} 0-1

[Event "GER-ch Youth U10w 2019"]
[Site "Willingen"]
[Date "2019.06.14"]
[Round "9.6"]
[White "Jannicke, Svea"]
[Black "Krasikova, Milana"]
[Result "1-0"]
[ECO "A05"]
[WhiteElo "1062"]
[BlackElo "1023"]
[Annotator "NA"]
[PlyCount "85"]
[EventDate "2019.06.07"]
[EventType "swiss"]
[EventRounds "11"]
[EventCountry "GER"]
[SourceTitle "playchess.com"]
[Source "ChessBase"]
[SourceQuality "1"]
[TimeControl "40/4500+30:900+30"]

1. Nf3 {[%emt 0:00:00]} Nf6 {[%emt 0:00:00]} 2. d4 {[%emt 0:00:14]} d5 {[%emt 0:00:00]} 3. c3 {[%emt 0:00:22]} e6 {[%emt 0:00:00]} 4. Bf4 {[%emt 0:00:07]} c5 {[%emt 0:00:11]} 5. e3 {[%emt 0:00:07]} Nc6 {[%emt 0:00:17]} 6. Bd3 {[%emt 0:00:17]} b6 {[%emt 0:00:25]} 7. Nbd2 {[%emt 0:00:08]} Bb7 {[%emt 0:00:21]} 8. Ne5 {[%emt 0:01:10]} Be7 {[%emt 0:02:56]} 9. Ndf3 {[%emt 0:00:41]} h6 {[%emt 0:00:42]} 10. O-O {[%emt 0:00:25]} Bd6 {[%emt 0:01:59]} 11. Qe2 {[%emt 0:00:43]} c4 {[%emt 0:03:13]} 12. Bc2 {[%emt 0:00:09]} b5 {[%emt 0:01:04]} 13. a3 {[%emt 0:00:37]} a5 {[%emt 0:02:34]} 14. Nxc6 {[%emt 0:00:21]} Bxc6 {[%emt 0:00:13]} 15. Ne5 {[%emt 0:00:06]} Bb7 {[%emt 0:03:07]} 16. a4 {[%emt 0:01:08]} b4 {[%emt 0:01:38]} 17. Rfe1 {[%emt 0:03:30]} b3 {[%emt 0:00:18]} 18. Bd1 {[%emt 0:00:08]} g5 {[%emt 0:05:37]} 19. Bg3 {[%emt 0:00:42]} h5 {[%emt 0:01:06]} 20. h3 {[%emt 0:00:05]} h4 {[%emt 0:00:39]} 21. Bh2 {[%emt 0:00:06]} Qe7 {[%emt 0:02:54]} 22. Ng4 {[%emt 0:00:46]} Bxh2+ {[%emt 0:01:26]} 23. Nxh2 {[%emt 0:00:40]} O-O-O {[%emt 0:02:17]} 24. Ng4 {[%emt 0:01:43]} Nxg4 {[%emt 0:00:50]} 25. Qxg4 {[%emt 0:00:10]} Rdg8 {[%emt 0:00:27]} 26. Qe2 {[%emt 0:01:30]} Qd6 {[%emt 0:00:45]} 27. Qd2 {[%emt 0:01:24]} f5 {[%emt 0:00:25]} 28. f3 {[%emt 0:01:00]} Qg3 {[%emt 0:01:49]} 29. Qf2 {[%emt 0:00:33]} Qxf2+ {[%emt 0:00:18]} 30. Kxf2 {[%emt 0:00:10]} Kd7 {[%emt 0:00:11]} 31. f4 {[%emt 0:01:05]} g4 {[%emt 0:00:39]} 32. hxg4 {[%emt 0:00:09]} fxg4 {[%emt 0:00:06]} 33. Rc1 {[%emt 0:00:50]} Ke7 {[%emt 0:00:29]} 34. Rh1 {[%emt 0:01:08]} Kf6 {[%emt 0:00:22]} 35. Be2 {[%emt 0:00:19]} Kf5 {[%emt 0:00:15]} 36. g3 {[%emt 0:00:36]} h3 {[%emt 0:01:01]} 37. Rh2 {[%emt 0:03:20]} Bc6 {[%emt 0:00:31]} 38. Rch1 {[%emt 0:00:33]} Bxa4 {[%emt 0:00:12]} 39. Ra1 {[%emt 0:00:14]} Bc6 {[%emt 0:00:36]} 40. Rxa5 {[%emt 0:00:10]} Ra8 {[%emt 0:00:08]} 41. Rxa8 {[%emt 0:15:11]} Rxa8 {[%emt 0:15:17]} 42. Rh1 {[%emt 0:00:46] normal} Ke4 {[%emt 0:00:56]} 43. Bxg4 {[%emt 0:00:39] normal} 1-0

[Event "GER-ch Youth U10w 2019"]
[Site "Willingen"]
[Date "2019.06.14"]
[Round "10.1"]
[White "Trunz, Tamila"]
[Black "Wartenberg, Alissa"]
[Result "0-1"]
[ECO "C55"]
[WhiteElo "1273"]
[BlackElo "1291"]
[Annotator "NA"]
[PlyCount "102"]
[EventDate "2019.06.07"]
[EventType "swiss"]
[EventRounds "11"]
[EventCountry "GER"]
[SourceTitle "playchess.com"]
[Source "ChessBase"]
[SourceQuality "1"]
[TimeControl "40/4500+30:900+30"]

1. e4 {[%emt 0:00:00]} e5 {[%emt 0:00:00]} 2. Nf3 {[%emt 0:00:00]} Nc6 {[%emt 0:00:00]} 3. d4 {[%emt 0:00:00]} exd4 {[%emt 0:00:00]} 4. Bc4 {[%emt 0:00:02]} Nf6 {[%emt 0:00:06]} 5. e5 {[%emt 0:00:06]} d5 {[%emt 0:00:08]} 6. Bb5 {[%emt 0:00:13]} Ne4 {[%emt 0:00:06]} 7. Nxd4 {[%emt 0:00:50]} Bd7 {[%emt 0:00:11]} 8. Bxc6 {[%emt 0:00:20]} bxc6 {[%emt 0:00:14]} 9. O-O {[%emt 0:00:47]} Bc5 {[%emt 0:00:21]} 10. Be3 {[%emt 0:01:10]} Bb6 {[%emt 0:00:13]} 11. f3 {[%emt 0:00:50]} Ng5 {[%emt 0:00:12]} 12. f4 {[%emt 0:00:28]} Ne4 {[%emt 0:00:09]} 13. Nd2 {[%emt 0:00:20]} Nxd2 {[%emt 0:00:09]} 14. Qxd2 {[%emt 0:00:09]} O-O {[%emt 0:00:11]} 15. Ne2 {[%emt 0:02:49]} f6 {[%emt 0:01:02]} 16. Ng3 {[%emt 0:05:37]} Bc8 {[%emt 0:01:38]} 17. Rae1 {[%emt 0:08:52]} Ba6 {[%emt 0:00:48]} 18. Rf3 {[%emt 0:03:46]} c5 {[%emt 0:03:11]} 19. Kh1 {[%emt 0:02:58]} Bb7 {[%emt 0:02:43]} 20. Rff1 {[%emt 0:05:41]} Qe7 {[%emt 0:01:00]} 21. exf6 {[%emt 0:06:21]} Qxf6 {[%emt 0:00:27]} 22. c3 {[%emt 0:05:33]} d4 {[%emt 0:02:00]} 23. cxd4 {[%emt 0:01:20]} cxd4 {[%emt 0:00:12]} 24. Bg1 {[%emt 0:01:57]} Rad8 {[%emt 0:00:35]} 25. f5 {[%emt 0:03:04]} c5 {[%emt 0:02:41]} 26. Re6 {[%emt 0:09:55]} Qf7 {[%emt 0:01:59]} 27. Qg5 {[%emt 0:05:24]} Rd7 {[%emt 0:01:27]} 28. Rfe1 {[%emt 0:02:54]} Bd8 {[%emt 0:00:57]} 29. Qg4 {[%emt 0:05:01]} Re7 {[%emt 0:01:57]} 30. Nh5 {[%emt 0:06:55]} Rc7 {[%emt 0:04:37]} 31. Rf1 {[%emt 0:04:30]} Bc8 {[%emt 0:04:19]} 32. Re5 {[%emt 0:01:15]} Re7 {[%emt 0:04:20]} 33. Rxc5 {[%emt 0:00:55]} Bb6 {[%emt 0:00:46]} 34. Rcc1 {[%emt 0:00:52]} Rd8 {[%emt 0:01:37]} 35. Rcd1 {[%emt 0:00:37]} Qg6 {[%emt 0:02:14]} 36. Qxg6 {[%emt 0:00:50]} hxg6 {[%emt 0:00:09]} 37. fxg6 {[%emt 0:00:05]} Bg4 {[%emt 0:00:19]} 38. Rf7 {[%emt 0:00:57]} Bxd1 {[%emt 0:01:09]} 39. Rxe7 {[%emt 0:00:24]} Bxh5 {[%emt 0:00:08]} 40. Re6 {[%emt 0:00:24]} d3 {[%emt 0:00:18]} 41. Bxb6 {[%emt 0:00:56]} axb6 {[%emt 0:00:05]} 42. Re1 {[%emt 0:00:38]} d2 {[%emt 0:00:05]} 43. Rf1 {[%emt 0:00:13]} d1=Q {[%emt 0:00:08]} 44. Rg1 {[%emt 0:00:21]} Qe2 {[%emt 0:00:15]} 45. b4 {[%emt 0:00:21]} Rd1 {[%emt 0:00:06]} 46. h3 {[%emt 0:00:22]} Rxg1+ {[%emt 0:00:09]} 47. Kxg1 {[%emt 0:00:13]} Qe1+ {[%emt 0:00:24]} 48. Kh2 {[%emt 0:00:11]} Bxg6 {[%emt 0:00:14]} 49. b5 {[%emt 0:00:17]} Be4 {[%emt 0:00:06]} 50. a4 {[%emt 0:00:18]} Qf2 {[%emt 0:00:07] normal} 51. a5 {[%emt 0:00:21]} Qxg2# {normal} 0-1

[Event "GER-ch Youth U10w 2019"]
[Site "Willingen"]
[Date "2019.06.14"]
[Round "10.2"]
[White "Heutling, Sarah"]
[Black "Mirnaya, Veronika"]
[Result "0-1"]
[ECO "C59"]
[WhiteElo "1147"]
[BlackElo "1237"]
[Annotator "NA"]
[PlyCount "108"]
[EventDate "2019.06.07"]
[EventType "swiss"]
[EventRounds "11"]
[EventCountry "GER"]
[SourceTitle "playchess.com"]
[Source "ChessBase"]
[SourceQuality "1"]
[TimeControl "40/4500+30:900+30"]

1. e4 e5 2. Nf3 Nc6 3. Bc4 {[%emt 0:00:00]} Nf6 {[%emt 0:00:14]} 4. Ng5 {[%emt 0:00:00]} d5 {[%emt 0:00:37]} 5. exd5 {[%emt 0:00:07]} Na5 {[%emt 0:00:09]} 6. Bb5+ {[%emt 0:00:12]} c6 {[%emt 0:00:17]} 7. dxc6 {[%emt 0:00:13]} bxc6 {[%emt 0:00:12]} 8. Be2 {[%emt 0:00:13]} h6 {[%emt 0:00:29]} 9. Nf3 {[%emt 0:00:13]} e4 {[%emt 0:00:08]} 10. Ne5 {[%emt 0:00:13]} Bc5 {[%emt 0:00:45]} 11. c3 {[%emt 0:00:18]} Bd6 {[%emt 0:00:17]} 12. Nc4 {[%emt 0:01:34]} Nxc4 {[%emt 0:01:12]} 13. Bxc4 {[%emt 0:00:10]} O-O {[%emt 0:00:58]} 14. O-O {[%emt 0:00:43]} Qc7 {[%emt 0:01:25]} 15. h3 {[%emt 0:02:04]} Bf5 {[%emt 0:00:38]} 16. d4 {[%emt 0:00:51]} exd3 {[%emt 0:00:49]} 17. Bxd3 {[%emt 0:00:27]} Rad8 {[%emt 0:02:37]} 18. f4 {[%emt 0:01:58]} Bxd3 {[%emt 0:00:39]} 19. Re1 {[%emt 0:05:05]} Bxb1 {[%emt 0:01:17]} 20. Qb3 {[%emt 0:06:47]} Bg6 {[%emt 0:00:55]} 21. Rf1 {[%emt 0:03:25]} Qb6+ {[%emt 0:02:14]} 22. Qxb6 {[%emt 0:00:40]} axb6 {[%emt 0:00:05]} 23. Be3 {[%emt 0:00:29]} b5 {[%emt 0:00:16]} 24. Rad1 {[%emt 0:02:19]} Rfe8 {[%emt 0:00:21]} 25. Bf2 {[%emt 0:02:03]} Bxf4 {[%emt 0:04:42]} 26. g3 {[%emt 0:07:48]} Rxd1 {[%emt 0:00:18]} 27. Rxd1 {[%emt 0:00:08]} Bc7 {[%emt 0:00:35]} 28. b4 {[%emt 0:02:41]} Re2 {[%emt 0:03:56]} 29. a3 {[%emt 0:05:08]} Ra2 {[%emt 0:01:31]} 30. Re1 {[%emt 0:02:45]} Rxa3 {[%emt 0:00:52]} 31. Bd4 {[%emt 0:00:36]} Bxg3 {[%emt 0:01:04]} 32. Re3 {[%emt 0:01:18]} Bf4 {[%emt 0:00:59]} 33. Re7 {[%emt 0:00:38]} Nd5 {[%emt 0:01:16]} 34. Re8+ {[%emt 0:01:38]} Kh7 {[%emt 0:00:12]} 35. Rc8 {[%emt 0:00:09]} Nxc3 {[%emt 0:00:22]} 36. Rxc6 {[%emt 0:00:24]} Nd5 {[%emt 0:00:27]} 37. Rc5 {[%emt 0:01:19]} Nxb4 {[%emt 0:00:54]} 38. Rxb5 {[%emt 0:00:17]} Nd3 {[%emt 0:00:34]} 39. Rb1 {[%emt 0:02:45]} Ra2 {[%emt 0:02:20]} 40. Rd1 {[%emt 0:03:27]} Be4 {[%emt 0:01:31]} 41. Kf1 {[%emt 0:15:50]} Bg2+ {[%emt 0:15:49]} 42. Kg1 {[%emt 0:00:18]} Bh2+ {[%emt 0:00:50]} 43. Kxh2 {[%emt 0:00:08]} Bf3+ {[%emt 0:00:12]} 44. Kg3 {[%emt 0:00:23]} Bxd1 {[%emt 0:00:08]} 45. h4 {[%emt 0:00:44]} Ra4 {[%emt 0:00:30]} 46. Be3 {[%emt 0:00:54]} Rg4+ {[%emt 0:00:31]} 47. Kh3 {[%emt 0:00:36]} Nf4+ {[%emt 0:00:12]} 48. Kh2 {[%emt 0:00:44]} Rxh4+ {[%emt 0:00:49]} 49. Kg3 {[%emt 0:00:11]} Rg4+ {[%emt 0:00:09]} 50. Kf2 {[%emt 0:00:48]} Nd3+ {[%emt 0:00:36]} 51. Kf1 {[%emt 0:00:12]} Bf3 {[%emt 0:01:56]} 52. Bf2 {[%emt 0:00:59]} Nxf2 {[%emt 0:00:21]} 53. Kxf2 {[%emt 0:00:07]} Bd5 {[%emt 0:00:19]} 54. Ke3 {[%emt 0:00:22]} h5 {[%emt 0:00:12] normal} 0-1

[Event "GER-ch Youth U10w 2019"]
[Site "Willingen"]
[Date "2019.06.14"]
[Round "10.3"]
[White "Glotz, Diana"]
[Black "Ezold, Johanna Sophie"]
[Result "0-1"]
[ECO "A22"]
[WhiteElo "1244"]
[BlackElo "1076"]
[Annotator "NA"]
[PlyCount "87"]
[EventDate "2019.06.07"]
[EventType "swiss"]
[EventRounds "11"]
[EventCountry "GER"]
[SourceTitle "playchess.com"]
[Source "ChessBase"]
[SourceQuality "1"]
[TimeControl "40/4500+30:900+30"]

1. c4 {[%emt 0:00:00]} e5 {[%emt 0:00:00]} 2. Nc3 {[%emt 0:00:00]} Nf6 {[%emt 0:00:00]} 3. g3 {[%emt 0:00:18]} Bb4 {[%emt 0:00:00]} 4. Bg2 {[%emt 0:00:24]} O-O {[%emt 0:00:18]} 5. e3 {[%emt 0:00:17]} c6 {[%emt 0:02:07]} 6. d4 {[%emt 0:02:53]} exd4 {[%emt 0:00:14]} 7. Qxd4 {[%emt 0:00:50]} Re8 {[%emt 0:01:33]} 8. Nge2 {[%emt 0:02:08]} d6 {[%emt 0:02:48]} 9. O-O {[%emt 0:01:45]} Nbd7 {[%emt 0:00:42]} 10. a3 {[%emt 0:02:05]} Bxc3 {[%emt 0:00:07]} 11. Nxc3 {[%emt 0:00:10]} Ne5 {[%emt 0:07:19]} 12. b3 {[%emt 0:06:57]} Be6 {[%emt 0:04:13]} 13. e4 {[%emt 0:04:09]} Ng6 {[%emt 0:05:26]} 14. f4 {[%emt 0:04:22]} Bd7 {[%emt 0:04:15]} 15. Qxd6 {[%emt 0:04:54]} Re6 {[%emt 0:10:03]} 16. Qd3 {[%emt 0:01:13]} Re8 {[%emt 0:02:47]} 17. Be3 {[%emt 0:03:07]} Qc8 18. f5 {[%emt 0:04:51]} Ne5 {[%emt 0:02:07]} 19. Qc2 {[%emt 0:04:12]} Nfg4 {[%emt 0:02:17]} 20. Bf4 {[%emt 0:03:45]} h6 {[%emt 0:00:48]} 21. h3 {[%emt 0:05:38]} Nf6 {[%emt 0:01:08]} 22. Rfd1 {[%emt 0:04:56]} Re7 {[%emt 0:02:22]} 23. Rd2 {[%emt 0:03:51]} Qc7 {[%emt 0:01:53]} 24. Rad1 {[%emt 0:03:05]} Rd8 {[%emt 0:01:03]} 25. Ne2 {[%emt 0:02:35]} Ree8 {[%emt 0:07:10]} 26. Qc3 {[%emt 0:02:12]} a6 {[%emt 0:07:06]} 27. Nd4 {[%emt 0:01:39]} Qb8 {[%emt 0:02:11]} 28. Nf3 {[%emt 0:00:34]} Qa7+ {[%emt 0:01:59]} 29. c5 {[%emt 0:00:43]} Nxf3+ {[%emt 0:00:22]} 30. Bxf3 {[%emt 0:00:21]} b6 {[%emt 0:00:52]} 31. cxb6 {[%emt 0:00:42]} Qxb6+ {[%emt 0:00:41]} 32. Be3 {[%emt 0:00:33]} Qb7 {[%emt 0:01:00]} 33. e5 {[%emt 0:01:20]} Nd5 {[%emt 0:00:57]} 34. Bxd5 {[%emt 0:00:58]} cxd5 {[%emt 0:00:15]} 35. Rxd5 {[%emt 0:02:07]} Rc8 {[%emt 0:01:25]} 36. Qd3 {[%emt 0:01:17]} Bb5 {[%emt 0:00:50]} 37. Qd2 {[%emt 0:01:20]} Bc6 {[%emt 0:01:11]} 38. Rc5 {[%emt 0:02:04]} Be4 {[%emt 0:01:05]} 39. Rxc8 {[%emt 0:00:47]} Qxc8 {[%emt 0:00:16]} 40. g4 {[%emt 0:00:47]} Ba8 {[%emt 0:02:58]} 41. Bf4 {[%emt 0:15:45]} Qc5+ {[%emt 0:16:10]} 42. Qe3 {[%emt 0:03:36]} Qxa3 {[%emt 0:00:46]} 43. Qb6 {[%emt 0:04:04]} Qb2 {[%emt 0:02:17]} 44. Bd2 {[%emt 0:00:00] normal} 0-1

[Event "GER-ch Youth U10w 2019"]
[Site "Willingen"]
[Date "2019.06.14"]
[Round "10.5"]
[White "Proettel, Ela"]
[Black "Haug, Mara"]
[Result "0-1"]
[ECO "A45"]
[WhiteElo "1333"]
[BlackElo "1097"]
[Annotator "NA"]
[PlyCount "96"]
[EventDate "2019.06.07"]
[EventType "swiss"]
[EventRounds "11"]
[EventCountry "GER"]
[SourceTitle "playchess.com"]
[Source "ChessBase"]
[SourceQuality "1"]
[TimeControl "40/4500+30:900+30"]

1. d4 {[%emt 0:00:00]} Nf6 {[%emt 0:00:00]} 2. Bf4 {[%emt 0:00:00]} g6 {[%emt 0:04:20]} 3. Nc3 {[%emt 0:00:19]} Bg7 {[%emt 0:01:24]} 4. e4 {[%emt 0:00:46]} d6 {[%emt 0:03:29]} 5. Qd2 {[%emt 0:01:12]} h6 {[%emt 0:04:25]} 6. Nf3 {[%emt 0:23:28]} Nbd7 {[%emt 0:03:08]} 7. Be2 {[%emt 0:05:45]} b6 {[%emt 0:10:59]} 8. O-O {[%emt 0:07:39]} Bb7 {[%emt 0:01:51]} 9. Bd3 {[%emt 0:03:15]} Nh5 {[%emt 0:09:28]} 10. Be3 {[%emt 0:02:53]} c6 {[%emt 0:04:31]} 11. Rfe1 {[%emt 0:06:49]} Qc7 {[%emt 0:02:47]} 12. a3 {[%emt 0:04:45]} e6 {[%emt 0:07:56]} 13. Bf1 {[%emt 0:08:05]} O-O-O {[%emt 0:05:36]} 14. b4 {[%emt 0:01:58]} f5 {[%emt 0:05:52]} 15. Qe2 {[%emt 0:07:36]} f4 {[%emt 0:02:32]} 16. Bd2 {[%emt 0:01:15]} e5 {[%emt 0:02:59]} 17. d5 {[%emt 0:04:50]} Nhf6 {[%emt 0:03:14]} 18. Qc4 {[%emt 0:02:10]} b5 {[%emt 0:02:36]} 19. Qb3 {[%emt 0:00:36]} Nb6 {[%emt 0:02:26]} 20. dxc6 {[%emt 0:00:51]} Qxc6 {[%emt 0:00:42]} 21. Bxb5 {[%emt 0:00:37]} Qc7 {[%emt 0:01:26]} 22. a4 {[%emt 0:00:34]} Nbd7 {[%emt 0:01:10]} 23. Qc4 {[%emt 0:00:30]} Qxc4 {[%emt 0:00:37]} 24. Bxc4 {[%emt 0:00:14]} Kb8 {[%emt 0:00:37]} 25. a5 {[%emt 0:00:46]} Rc8 {[%emt 0:00:52]} 26. Bb3 {[%emt 0:00:22]} a6 {[%emt 0:00:39]} 27. Ra2 Rhd8 {[%emt 0:01:51]} 28. Rb1 {[%emt 0:01:08]} Bc6 {[%emt 0:00:28]} 29. Ba4 {[%emt 0:00:31]} Kb7 {[%emt 0:00:37]} 30. Bxc6+ {[%emt 0:00:24]} Rxc6 {[%emt 0:00:09]} 31. Kf1 {[%emt 0:00:28]} Rdc8 {[%emt 0:00:22]} 32. Ra3 {[%emt 0:00:28]} Rc4 {[%emt 0:00:39]} 33. Ke2 {[%emt 0:00:34]} Nxe4 {[%emt 0:00:26]} 34. Nxe4 {[%emt 0:00:35]} Rxe4+ {[%emt 0:00:08]} 35. Kd3 {[%emt 0:00:33]} Rec4 {[%emt 0:00:18]} 36. Ke2 {[%emt 0:00:31]} Rxc2 {[%emt 0:00:26]} 37. Kd1 {[%emt 0:00:26]} e4 {[%emt 0:00:35]} 38. Ne1 {[%emt 0:00:31]} R2c7 {[%emt 0:00:28]} 39. Rab3 {[%emt 0:00:32]} Ka7 {[%emt 0:00:36]} 40. Bxf4 {[%emt 0:00:28]} Rc6 {[%emt 0:00:44]} 41. Be3+ {[%emt 0:15:26]} Ka8 {[%emt 0:15:26]} 42. Rc1 {[%emt 0:00:32]} Rxc1+ {[%emt 0:00:53]} 43. Bxc1 {[%emt 0:00:08]} d5 {[%emt 0:00:57]} 44. Nc2 {[%emt 0:00:52]} d4 {[%emt 0:00:50]} 45. f3 {[%emt 0:00:33]} e3 {[%emt 0:00:00]} 46. Ne1 {[%emt 0:00:00]} Be5 {[%emt 0:00:00]} 47. h3 Rc4 {[%emt 0:00:00]} 48. Nd3 {[%emt 0:00:00]} Kb7 {[%emt 0:00:00] normal} 0-1

[Event "GER-ch Youth U10w 2019"]
[Site "Willingen"]
[Date "2019.06.14"]
[Round "10.6"]
[White "Bakó, Evelin"]
[Black "Bako, Isabella"]
[Result "1/2-1/2"]
[ECO "A35"]
[WhiteElo "1152"]
[BlackElo "1215"]
[Annotator "NA"]
[PlyCount "63"]
[EventDate "2019.06.07"]
[EventType "swiss"]
[EventRounds "11"]
[EventCountry "GER"]
[SourceTitle "playchess.com"]
[Source "ChessBase"]
[SourceQuality "1"]
[TimeControl "40/4500+30:900+30"]

1. c4 {[%emt 0:00:00]} c5 {[%emt 0:00:00]} 2. Nc3 {[%emt 0:00:01]} Nf6 {[%emt 0:00:00]} 3. Nf3 {[%emt 0:00:33]} Nc6 {[%emt 0:00:12]} 4. e3 {[%emt 0:00:43]} e6 {[%emt 0:00:36]} 5. d4 {[%emt 0:01:01]} cxd4 {[%emt 0:00:16]} 6. Nxd4 {[%emt 0:00:44]} Nxd4 {[%emt 0:00:37]} 7. exd4 {[%emt 0:00:42]} d5 {[%emt 0:00:37]} 8. cxd5 {[%emt 0:00:15]} Nxd5 {[%emt 0:01:14]} 9. Nxd5 {[%emt 0:00:46]} exd5 {[%emt 0:00:36]} 10. Bb5+ {[%emt 0:01:00]} Bd7 {[%emt 0:00:22]} 11. Bxd7+ {[%emt 0:00:57]} Qxd7 {[%emt 0:00:20]} 12. O-O {[%emt 0:00:31]} Be7 {[%emt 0:01:12]} 13. Bf4 {[%emt 0:00:26]} O-O {[%emt 0:00:54]} 14. h3 {[%emt 0:00:19]} Bd6 {[%emt 0:00:48]} 15. Bxd6 {[%emt 0:01:03]} Qxd6 {[%emt 0:00:15]} 16. a3 {[%emt 0:00:26]} Qd7 {[%emt 0:01:52]} 17. b4 {[%emt 0:00:39]} Rfe8 {[%emt 0:01:40]} 18. Re1 {[%emt 0:00:41]} Rxe1+ {[%emt 0:00:17]} 19. Qxe1 {[%emt 0:00:03]} Rc8 {[%emt 0:00:50]} 20. a4 {[%emt 0:00:15]} h6 {[%emt 0:00:37]} 21. b5 {[%emt 0:00:39]} a6 {[%emt 0:05:02]} 22. bxa6 {[%emt 0:00:13]} bxa6 {[%emt 0:00:20]} 23. a5 {[%emt 0:00:44]} Kf8 {[%emt 0:00:31]} 24. Rc1 {[%emt 0:01:13]} Rxc1 {[%emt 0:00:22]} 25. Qxc1 {[%emt 0:00:17]} Kg8 {[%emt 0:02:10]} 26. Qe1 {[%emt 0:00:57]} Kf8 {[%emt 0:02:58]} 27. f4 {[%emt 0:00:13]} f5 {[%emt 0:02:15]} 28. Qe5 {[%emt 0:00:27]} Kf7 {[%emt 0:02:18]} 29. Kh2 {[%emt 0:00:32]} Qe6 {[%emt 0:02:04]} 30. Qxe6+ {[%emt 0:00:11]} Kxe6 {[%emt 0:00:15]} 31. Kg3 {[%emt 0:00:15]} Kf6 {[%emt 0:00:39]} 32. h4 {[%emt 0:00:08] normal} 1/2-1/2

[Event "GER-ch Youth U10w 2019"]
[Site "Willingen"]
[Date "2019.06.15"]
[Round "11.1"]
[White "Ezold, Johanna Sophie"]
[Black "Wartenberg, Alissa"]
[Result "0-1"]
[ECO "C50"]
[WhiteElo "1076"]
[BlackElo "1291"]
[Annotator "NA"]
[PlyCount "46"]
[EventDate "2019.06.07"]
[EventType "swiss"]
[EventRounds "11"]
[EventCountry "GER"]
[SourceTitle "playchess.com"]
[Source "ChessBase"]
[SourceQuality "1"]
[TimeControl "40/4500+30:900+30"]

1. e4 {[%emt 0:00:00]} e5 {[%emt 0:00:00]} 2. Nf3 {[%emt 0:00:00]} Nc6 {[%emt 0:00:00]} 3. Bc4 {[%emt 0:00:00]} Nf6 {[%emt 0:00:00]} 4. d3 {[%emt 0:00:14]} Bc5 {[%emt 0:00:13]} 5. O-O {[%emt 0:00:12]} O-O {[%emt 0:00:15]} 6. c3 {[%emt 0:00:07]} d6 {[%emt 0:01:49]} 7. Re1 {[%emt 0:00:24]} a6 {[%emt 0:00:32]} 8. b4 {[%emt 0:00:23]} Ba7 {[%emt 0:00:07]} 9. Na3 {[%emt 0:01:01]} Re8 {[%emt 0:00:43]} 10. Qb3 {[%emt 0:00:48]} Be6 {[%emt 0:00:40]} 11. Bxe6 {[%emt 0:00:23]} fxe6 {[%emt 0:00:18]} 12. Bd2 {[%emt 0:00:40]} d5 {[%emt 0:00:20]} 13. exd5 {[%emt 0:00:22]} exd5 {[%emt 0:00:09]} 14. Bg5 {[%emt 0:01:23]} Rf8 {[%emt 0:03:27]} 15. Nxe5 {[%emt 0:01:36]} Nxe5 {[%emt 0:05:54]} 16. Rxe5 {[%emt 0:00:36]} c6 {[%emt 0:00:12]} 17. Rae1 {[%emt 0:02:22]} Qc7 {[%emt 0:02:44]} 18. Bf4 Ng4 {[%emt 0:01:03]} 19. Rf5 {[%emt 0:04:49]} Qd7 {[%emt 0:01:08]} 20. Rxf8+ {[%emt 0:00:43]} Rxf8 {[%emt 0:00:06]} 21. Bg3 {[%emt 0:00:27]} Bxf2+ {[%emt 0:01:28]} 22. Bxf2 {[%emt 0:03:48]} Rxf2 {[%emt 0:00:38]} 23. h3 {[%emt 0:00:19]} Qd6 {[%emt 0:01:37] normal} 0-1